fUSD/lending_fUSD_20240521
["ID","MTS","AMOUNT","RATE_DAILY","PERIOD"]
[327640939,1716267093469,8073.17456004,0.00017533,2]
[327640940,1716267093492,5539.24312704,0.00017533,2]
[327640954,1716267147294,155.0,0.00017259,2]
[327640960,1716267287286,2925.23003101,0.00017259,2]
[327640961,1716267385557,964.19357353,0.00017259,2]
[327640963,1716267467032,162.09,0.00013973,2]
[327640964,1716267468253,1788.03912655,0.00017259,2]
[327640971,1716267763875,6297.540484,1e-08,2]
[327640972,1716267824072,-665.53143855,0.000219,2]
[327640973,1716267824094,-170.25,0.00021918,2]
[327640974,1716267824116,-787.45461326,0.00022,2]
[327640975,1716267824138,-155.10854058,0.0002204,2]
[327640976,1716267824159,-1000.0,0.00022258,2]
[327640977,1716267824180,-1000.0,0.00022795,2]
[327640978,1716267824202,-999.99,0.00022795,2]
[327640979,1716267826761,487.0,0.0002,2]
[327640981,1716267881767,2611.5,0.00019451,2]
[327640982,1716267882031,313.9335661,0.00017259,2]
[327640989,1716267939174,-273.332201,0.00023948,2]
[327640990,1716267939195,-751.01066168,0.00024069,28]
[327640999,1716268042136,-318.201412,0.00024069,28]
[327641000,1716268042156,-994.48,0.00024069,2]
[327641001,1716268042176,-499.99,0.00024069,2]
[327641002,1716268042199,-1005.57185092,0.00024097,2]
[327641003,1716268042219,-206.7042,0.00024347,2]
[327641004,1716268042240,-3880.87657905,0.00024347,2]
[327641012,1716268153103,-153.42116949,0.00021771,2]
[327641013,1716268153130,-985.06424492,0.00024347,2]
[327641024,1716268231916,-13160.01733837,0.00024347,2]
[327641025,1716268232113,-1680.05183766,0.00024347,2]
[327641026,1716268232123,-155.56943574,0.00024673,2]
[327641027,1716268232132,-158.66159608,0.00025033,2]
[327641028,1716268232141,-150.99,0.00025571,2]
[327641029,1716268232150,-170.25,0.00025571,2]
[327641030,1716268232160,-787.45461326,0.00027214,2]
[327641031,1716268232169,-150.17304743,0.00027215,2]
[327641032,1716268232179,-3655.0,0.000275,3]
[327641033,1716268232188,-1000.0,0.00028283,2]
[327641034,1716268232197,-170.25,0.00029224,2]
[327641035,1716268232207,-1940.61666908,0.00029402,2]
[327641036,1716268232216,-159.63652631,0.00029403,2]
[327641037,1716268232226,-657.38,0.00029897,2]
[327641038,1716268232235,-572.05925731,0.00030059,2]
[327641039,1716268232247,-427.94074269,0.00030059,2]
[327641040,1716268232257,-2000.0,0.00031797,2]
[327641041,1716268232266,-200.0,0.00031839,2]
[327641042,1716268232276,-500.0,0.00031926,2]
[327641043,1716268232285,-2127.63,0.00031984,60]
[327641044,1716268232294,-898.81,0.00031984,2]
[327641045,1716268232304,-4000.0,0.0003202,2]
[327641046,1716268232313,-250.0,0.00032046,2]
[327641047,1716268232323,-160.46,0.00032085,120]
[327641048,1716268232332,-7342.38,0.00032146,2]
[327641049,1716268232342,-657.38,0.00032161,2]
[327641050,1716268232351,-200.0,0.00032174,2]
[327641051,1716268232363,-250.0,0.00032303,2]
[327641052,1716268232372,-192.08,0.00032313,2]
[327641053,1716268232382,-192.08,0.00032402,2]
[327641054,1716268232391,-250.0,0.00032417,2]
[327641055,1716268232401,-177.55,0.00032423,2]
[327641056,1716268232415,-500.0,0.00032431,2]
[327641057,1716268232425,-192.08,0.0003249,2]
[327641058,1716268232433,-800.0,0.0003253,2]
[327641060,1716268232443,-192.08,0.00032579,2]
[327641062,1716268232453,-1284.17,0.00032631,2]
[327641063,1716268232462,-192.08,0.00032667,2]
[327641064,1716268232472,-1000.0,0.00032722,2]
[327641065,1716268232481,-192.08,0.00032756,2]
[327641066,1716268232491,-167.85,0.00032767,120]
[327641067,1716268232501,-192.08,0.00032845,2]
[327641068,1716268232510,-170.25,0.00032877,2]
[327641069,1716268232520,-171.16,0.0003289,2]
[327641070,1716268232529,-192.08,0.00032933,2]
[327641071,1716268232538,-192.08,0.00033022,2]
[327641072,1716268232547,-192.08,0.00033111,2]
[327641073,1716268232557,-192.08,0.00033199,2]
[327641074,1716268232566,-192.08,0.00033288,2]
[327641075,1716268232575,-192.08,0.00033376,2]
[327641076,1716268232585,-192.08,0.00033465,2]
[327641077,1716268232594,-165.16,0.000335,2]
[327641078,1716268232606,-165.16,0.000335,2]
[327641079,1716268232615,-165.16,0.000335,2]
[327641080,1716268232624,-165.16,0.000335,2]
[327641081,1716268232634,-165.16,0.000335,2]
[327641082,1716268232644,-165.16,0.000335,2]
[327641083,1716268232653,-165.16,0.000335,2]
[327641084,1716268232662,-165.16,0.000335,2]
[327641085,1716268232672,-165.16,0.000335,2]
[327641086,1716268232681,-165.16,0.000335,2]
[327641087,1716268232690,-165.16,0.000335,2]
[327641088,1716268232700,-165.16,0.000335,2]
[327641089,1716268232709,-165.16,0.000335,2]
[327641090,1716268232719,-165.16,0.000335,2]
[327641091,1716268232728,-165.16,0.000335,2]
[327641092,1716268232737,-165.16,0.000335,2]
[327641093,1716268232747,-165.16,0.000335,2]
[327641094,1716268232756,-165.16,0.000335,2]
[327641095,1716268232767,-165.16,0.000335,2]
[327641096,1716268232776,-165.16,0.000335,2]
[327641097,1716268232785,-192.08,0.00033554,2]
[327641098,1716268232795,-192.08,0.00033642,2]
[327641099,1716268232804,-313.73592558,0.00033723,7]
[327641100,1716268232814,-192.08,0.00033731,2]
[327641101,1716268232823,-152.89707066,0.00033756,7]
[327641102,1716268232833,-192.08,0.0003382,2]
[327641103,1716268232842,-152.52,0.00033837,120]
[327641104,1716268232851,-192.08,0.00033908,2]
[327641105,1716268232863,-192.08,0.00033997,2]
[327641106,1716268232872,-1156.52443818,0.00034069,120]
[327641107,1716268232882,-4706.62389753,0.00034069,120]
[327641108,1716268233109,-657.38,0.00034425,2]
[327641109,1716268233137,-17006.89997365,0.000345,7]
[327641110,1716268233147,-302.24,0.00034685,2]
[327641111,1716268233156,-898.81,0.00034724,2]
[327641112,1716268233165,-600.28071299,0.00035,2]
[327641113,1716268233174,-4265.33750399,0.00035,4]
[327641114,1716268233183,-337.66381,0.0003514,2]
[327641115,1716268233192,-252.27925185,0.00035143,4]
[327641116,1716268233202,-221.55659217,0.00035298,2]
[327641117,1716268233211,-1021.7617,0.00035298,2]
[327641118,1716268233220,-25659.7722,0.00035298,2]
[327641119,1716268233229,-948.9265,0.000353,2]
[327641120,1716268233236,-500.0,0.000353,2]
[327641121,1716268233244,-221.55659216,0.00035309,2]
[327641122,1716268233251,-221.55659216,0.00035321,2]
[327641123,1716268233257,-221.55659216,0.00035332,2]
[327641124,1716268233263,-221.55659216,0.00035343,2]
[327641125,1716268233270,-221.55659216,0.00035355,2]
[327641126,1716268233275,-171.12,0.00035364,2]
[327641127,1716268233282,-231.57113914,0.00035398,2]
[327641128,1716268233290,-100000.0,0.00035398,2]
[327641129,1716268233296,-1000.0,0.00035398,2]
[327641130,1716268233304,-245000.0,0.00035398,2]
[327641131,1716268233311,-4965.08965674,0.000354,2]
[327641132,1716268237965,-221.55659216,0.00035366,2]
[327641133,1716268237975,-2355.85994326,0.000354,2]
[327641134,1716268237985,-2493.79582707,0.000354,2]
[327641135,1716268237998,-1077.25967293,0.000354,2]
[327641136,1716268238008,-1000.0,0.000354,2]
[327641137,1716268238017,-347.75193281,0.000354,2]
[327641138,1716268238027,-4667.96338491,0.000354,5]
[327641139,1716268238038,-326.6444601,0.000354,5]
[327641140,1716268238066,-273.84,0.000354,5]
[327641141,1716268238130,-480.57065647,0.000354,5]
[327641142,1716268238142,-257.51201041,0.000354,5]
[327641143,1716268238154,-1689.45908174,0.000354,5]
[327641144,1716268238166,-993.61608714,0.000354,5]
[327641150,1716268242348,-221.55659216,0.00035377,2]
[327641151,1716268242359,-12848.01418026,0.000354,5]
[327641170,1716268243039,-9020.24592566,0.000354,5]
[327641171,1716268243048,-1570.38761208,0.000354,8]
[327641172,1716268243058,-156.41606702,0.000354,2]
[327641173,1716268243067,-989.84569161,0.000354,2]
[327641174,1716268243078,-1141.06581248,0.000354,2]
[327641175,1716268243088,-3440.77651884,0.00035466,4]
[327641176,1716268243097,-201.52154248,0.0003549,2]
[327641177,1716268243107,-180.0,0.00035493,2]
[327641178,1716268243118,-158.47922775,0.00035497,4]
[327641179,1716268243127,-5281.48132959,0.00035498,4]
[327641180,1716268243137,-2221.6315313,0.00035498,14]
[327641181,1716268243146,-156.07744553,0.00035498,4]
[327641182,1716268243156,-228.6758724,0.00035498,4]
[327641183,1716268243166,-207.79137545,0.00035498,4]
[327641184,1716268243177,-1213.86286968,0.00035498,4]
[327641185,1716268243186,-2694.31831512,0.00035498,4]
[327641186,1716268243210,-4282.15548349,0.00035498,4]
[327641187,1716268243219,-488.66319788,0.00035498,4]
[327641188,1716268243228,-266.22124095,0.00035498,4]
[327641189,1716268243237,-158.52697933,0.00035498,4]
[327641190,1716268243246,-1016.83309835,0.00035498,4]
[327641191,1716268243258,-231.15962765,0.00035498,4]
[327641192,1716268243267,-237.20973575,0.00035498,4]
[327641193,1716268243277,-9480.5599931,0.00035498,4]
[327641194,1716268243289,-292.60460719,0.00035498,4]
[327641195,1716268243299,-5456.75715038,0.00035498,4]
[327641196,1716268243311,-5475.61980437,0.00035498,4]
[327641197,1716268243323,-409.57332156,0.00035498,4]
[327641198,1716268243332,-198.413408,0.00035498,4]
[327641199,1716268243342,-326.61045955,0.00035498,4]
[327641200,1716268243352,-155.24858575,0.00035498,4]
[327641201,1716268243362,-3014.73211358,0.00035498,4]
[327641202,1716268243371,-281.78392074,0.00035498,4]
[327641203,1716268243380,-155.0,0.00035498,4]
[327641204,1716268243390,-162.55023303,0.00035498,4]
[327641205,1716268243399,-19613.38614551,0.00035498,2]
[327641206,1716268243410,-155.28854917,0.00035498,4]
[327641207,1716268243423,-402.61615402,0.00035498,4]
[327641208,1716268243432,-421.72792341,0.00035498,4]
[327641209,1716268243442,-882.97639577,0.00035498,4]
[327641210,1716268243452,-151.052114,0.00035498,34]
[327641211,1716268243462,-161.85608855,0.00035499,4]
[327641212,1716268243471,-7360.49,0.000355,5]
[327641213,1716268243480,-163.0,0.000355,5]
[327641214,1716268243490,-29430.68672355,0.000355,15]
[327641215,1716268243503,-9903.01126102,0.000355,15]
[327641216,1716268243515,-1628.8462697,0.000355,15]
[327641217,1716268243594,-113.81587368,0.000355,15]
[327641218,1716268243605,-2641.46049284,0.000355,15]
[327641226,1716268243754,-2317.29424864,0.000355,15]
[327641230,1716268243769,-642.97400492,0.000355,15]
[327641232,1716268243785,-1235.52493924,0.000355,15]
[327641235,1716268243850,-68011.2924895,0.000355,15]
[327641236,1716268243860,-7220.48,0.000355,5]
[327641237,1716268243871,-215895.19959947,0.000355,5]
[327641238,1716268243883,-59855.0841949,0.000355,5]
[327641246,1716268247630,-221.55659216,0.00035389,2]
[327641247,1716268247640,-5791.02749014,0.000355,5]
[327641248,1716268247695,-910.18323294,0.000355,5]
[327641249,1716268247707,-410.15274604,0.000355,5]
[327641250,1716268247936,-0.02500345,0.000355,5]
[327641251,1716268274771,150.0,0.00017355,2]
[327641252,1716268275034,150.0,0.00017498,2]
[327641253,1716268275082,150.0,0.00017294,2]
[327641254,1716268275133,150.0,0.00017364,2]
[327641255,1716268275215,150.0,0.00017267,2]
[327641256,1716268275378,150.0,0.00017355,2]
[327641257,1716268275418,150.0,0.00017343,2]
[327641258,1716268275457,150.0,0.00017378,2]
[327641259,1716268275498,150.0,0.00017486,2]
[327641260,1716268275555,150.0,0.00017503,2]
[327641261,1716268275620,150.0,0.00017314,2]
[327641262,1716268275663,150.0,0.00017262,2]
[327641263,1716268275699,150.0,0.00017479,2]
[327641264,1716268275737,150.0,0.00017267,2]
[327641265,1716268275781,150.0,0.00017525,2]
[327641266,1716268275837,150.0,0.00017519,2]
[327641267,1716268275881,150.0,0.00017514,2]
[327641268,1716268275946,150.0,0.00017286,2]
[327641269,1716268275998,150.0,0.00017355,2]
[327641270,1716268276037,150.0,0.00017533,2]
[327641271,1716268276077,150.0,0.00017414,2]
[327641272,1716268276129,150.0,0.00017501,2]
[327641273,1716268276196,150.0,0.00017375,2]
[327641274,1716268276233,150.0,0.00017455,2]
[327641275,1716268276268,300.0,0.00017352,2]
[327641276,1716268280058,1500.0,0.00017456,2]
[327641277,1716268280113,1500.0,0.00017489,2]
[327641278,1716268280159,1500.0,0.00017483,2]
[327641279,1716268280323,1500.0,0.00017336,2]
[327641280,1716268280438,1572.87827001,0.00017272,2]
[327641281,1716268280486,1500.0,0.00017516,2]
[327641284,1716268475752,155.67,0.00013973,2]
[327641285,1716268528787,549.16646013,0.00017516,2]
[327641286,1716268546738,378.76068083,0.00017516,2]
[327641287,1716268582168,4387.73608297,0.00019,2]
[327641288,1716268680339,-547.30858582,0.0002,2]
[327641289,1716268686254,183.12704954,0.0002,4]
[327641290,1716268692156,155.0,0.00017259,2]
[327641291,1716268698831,314.36913021,0.0002,2]
[327641292,1716268712360,185.10641192,0.0002,2]
[327641293,1716268716107,4387.73608297,0.00019,2]
[327641294,1716268718742,549.16646013,0.00017259,2]
[327641295,1716268736874,378.76068083,0.00017259,2]
[327641301,1716268996476,155.67,0.00013973,2]
[327641302,1716269099512,322.18403714,0.00025,30]
[327641303,1716269202258,278.27928964,0.00017533,2]
[327641304,1716269252132,-158.66159608,0.00021211,2]
[327641305,1716269252154,-155.0,0.00021656,2]
[327641306,1716269252174,-155.0,0.00021656,2]
[327641307,1716269252199,-155.0,0.00021658,4]
[327641308,1716269252219,-800.18840392,0.00021659,2]
[327641310,1716269352073,484.54175273,0.00019451,2]
[327641312,1716269368110,-151.35999997,0.00021661,2]
[327641313,1716269409502,322.18403714,0.00026445,30]
[327641323,1716269432493,-4.31000003,0.00021661,2]
[327641324,1716269432503,-712.2838806,0.00022,2]
[327641325,1716269432515,-75.17073266,0.00022,2]
[327641326,1716269432524,-154.16098317,0.00022127,2]
[327641327,1716269432533,-499.99,0.00023495,2]
[327641328,1716269432542,-1927.75859767,0.00023623,2]
[327641329,1716269432553,-498.23773339,0.00023623,2]
[327641330,1716269432565,-286.70876894,0.00023623,2]
[327641331,1716269432574,-150.99,0.00024517,2]
[327641332,1716269432583,-6.73767849,0.00024517,2]
[327641333,1716269432741,-732.49109152,0.00024517,2]
[327641334,1716269432753,-359.91122999,0.00024517,2]
[327641335,1716269432763,-575.60096077,0.00025933,14]
[327641336,1716269432772,-168.13242215,0.00025934,2]
[327641337,1716269432782,-159.63652632,0.00026446,2]
[327641338,1716269432797,-983.0,0.000274,3]
[327641339,1716269432809,-155.67,0.00029349,2]
[327641340,1716269432818,-740.34,0.00030556,2]
[327641341,1716269432828,-185.51952643,0.00032206,4]
[327641342,1716269432839,-155.0,0.00032206,4]
[327641343,1716269432848,-155.0,0.00032206,4]
[327641344,1716269432857,-155.0,0.00032206,4]
[327641345,1716269432869,-500.0,0.00032207,2]
[327641346,1716269432878,-603.05,0.0003223,2]
[327641347,1716269432887,-160.0,0.00032266,2]
[327641348,1716269432897,-171.16,0.00032321,2]
[327641349,1716269432906,-153.4211695,0.00032327,7]
[327641350,1716269432917,-177.55816484,0.00032472,2]
[327641356,1716269438352,-72.44183516,0.00032472,2]
[327641357,1716269438367,-152.52,0.00032473,120]
[327641358,1716269438378,-176.16146484,0.00032474,2]
[327641359,1716269438391,-400.0,0.00032474,2]
[327641360,1716269438403,-3423.83853516,0.00032474,2]
[327641361,1716269438413,-250.0,0.00032556,2]
[327641362,1716269438423,-2000.0,0.00032576,2]
[327641363,1716269438433,-752.59,0.0003282,2]
[327641364,1716269438444,-740.34,0.0003282,2]
[327641365,1716269438455,-339.17922691,0.00032961,4]
[327641366,1716269438465,-170.73,0.00032962,120]
[327641367,1716269438475,-298.11,0.00033059,2]
[327641368,1716269438485,-298.11,0.00033068,2]
[327641369,1716269438495,-298.11,0.00033077,2]
[327641370,1716269438505,-298.11,0.00033085,2]
[327641371,1716269438515,-298.11,0.00033094,2]
[327641372,1716269438525,-298.11,0.00033103,2]
[327641373,1716269438535,-298.11,0.00033111,2]
[327641374,1716269438546,-298.11,0.0003312,2]
[327641375,1716269438556,-298.11,0.00033129,2]
[327641376,1716269438567,-298.11,0.00033138,2]
[327641377,1716269438577,-298.11,0.00033146,2]
[327641378,1716269438587,-298.11,0.00033155,2]
[327641379,1716269438597,-298.11,0.00033164,2]
[327641380,1716269438607,-298.11,0.00033172,2]
[327641381,1716269438617,-298.11,0.00033181,2]
[327641382,1716269438627,-298.11,0.0003319,2]
[327641383,1716269438636,-298.11,0.00033199,2]
[327641384,1716269438646,-298.11,0.00033207,2]
[327641385,1716269438656,-298.11,0.00033216,2]
[327641386,1716269438666,-298.11,0.00033225,2]
[327641387,1716269438676,-187.39118487,0.00033232,7]
[327641388,1716269438686,-153.66,0.000335,2]
[327641389,1716269438698,-153.66,0.000335,2]
[327641390,1716269438708,-153.66,0.000335,2]
[327641391,1716269438718,-153.66,0.000335,2]
[327641392,1716269438728,-153.66,0.000335,2]
[327641393,1716269438738,-153.66,0.000335,2]
[327641394,1716269438748,-153.66,0.000335,2]
[327641395,1716269438758,-153.66,0.000335,2]
[327641396,1716269438768,-153.66,0.000335,2]
[327641397,1716269438779,-153.66,0.000335,2]
[327641398,1716269438792,-153.66,0.000335,2]
[327641399,1716269438803,-153.66,0.000335,2]
[327641400,1716269438813,-153.66,0.000335,2]
[327641401,1716269438823,-153.66,0.000335,2]
[327641402,1716269438834,-153.66,0.000335,2]
[327641403,1716269438844,-153.66,0.000335,2]
[327641404,1716269438854,-153.66,0.000335,2]
[327641405,1716269438864,-1298.18587077,0.00033703,4]
[327641406,1716269438876,-313.76801603,0.00033723,7]
[327641407,1716269438886,-840.0,0.00033889,2]
[327641408,1716269438896,-271.33791023,0.00034,10]
[327641409,1716269438906,-262.97878765,0.00034073,60]
[327641410,1716269438916,-170.38,0.00034085,120]
[327641411,1716269438926,-17006.89997365,0.000345,7]
[327641412,1716269438936,-462.22271903,0.000349,2]
[327641413,1716269438949,-603.05,0.0003497,2]
[327641414,1716269438959,-17254.01362038,0.0003499,15]
[327641415,1716269438968,-9018.25995073,0.00035,2]
[327641416,1716269438978,-462.22271902,0.00035049,2]
[327641417,1716269438988,-2985.73625279,0.00035083,4]
[327641418,1716269438997,-740.34,0.00035084,2]
[327641419,1716269439008,-404.1855,0.0003514,2]
[327641420,1716269439018,-462.22271902,0.00035198,2]
[327641421,1716269439029,-1000.0,0.00035198,2]
[327641422,1716269439040,-1036.43739684,0.00035198,2]
[327641423,1716269439562,-1463.56260316,0.00035198,2]
[327641424,1716269439573,-282.42239714,0.00035216,10]
[327641425,1716269439901,-250.0,0.00033436,2]
[327641426,1716269439912,-217.57760286,0.00035216,10]
[327641427,1716269439922,-150.0,0.00035227,2]
[327641428,1716269439933,-150.0,0.00035227,2]
[327641429,1716269439945,-225.69401434,0.00035227,2]
[327641430,1716269439959,-74.30598566,0.00035227,2]
[327641432,1716269439969,-150.0,0.00035228,2]
[327641434,1716269439980,-39.93401434,0.0003523,2]
[327641439,1716269440135,-110.06598566,0.0003523,2]
[327641440,1716269440145,-150.0,0.00035231,2]
[327641441,1716269440156,-150.0,0.00035232,2]
[327641442,1716269440166,-150.0,0.00035233,2]
[327641443,1716269440176,-150.0,0.00035234,2]
[327641444,1716269440186,-156.51411667,0.00035237,2]
[327641445,1716269440202,-1343.48588333,0.00035237,2]
[327641446,1716269440212,-150.0,0.00035238,2]
[327641447,1716269440222,-1500.0,0.0003524,2]
[327641448,1716269440232,-150.0,0.0003524,2]
[327641450,1716269440242,-150.0,0.00035241,2]
[327641451,1716269440252,-150.0,0.00035242,2]
[327641452,1716269440262,-150.0,0.00035242,2]
[327641454,1716269440272,-150.0,0.00035243,2]
[327641456,1716269440282,-150.0,0.00035245,2]
[327641458,1716269440293,-150.0,0.00035251,2]
[327641460,1716269440303,-300.0,0.00035252,2]
[327641462,1716269440313,-150.0,0.00035252,2]
[327641464,1716269440323,-150.0,0.00035255,2]
[327641466,1716269440333,-1500.0,0.00035259,2]
[327641468,1716269440343,-150.0,0.00035265,2]
[327641470,1716269440353,-1202.41154305,0.00035266,2]
[327641472,1716269440364,-150.0,0.00035267,2]
[327641474,1716269440373,-150.0,0.00035269,2]
[327641476,1716269440383,-150.0,0.00035269,2]
[327641478,1716269440393,-150.0,0.00035272,2]
[327641480,1716269440404,-150.0,0.00035273,2]
[327641482,1716269440414,-150.0,0.00035276,2]
[327641483,1716269440424,-300.0,0.00035277,2]
[327641484,1716269440434,-150.0,0.00035277,2]
[327641485,1716269440446,-150.0,0.00035277,2]
[327641486,1716269440456,-150.0,0.00035281,2]
[327641487,1716269440466,-150.0,0.00035282,2]
[327641488,1716269440476,-150.0,0.00035283,2]
[327641489,1716269440486,-150.0,0.00035284,2]
[327641490,1716269440496,-150.0,0.00035284,2]
[327641491,1716269440506,-150.0,0.00035285,2]
[327641492,1716269440515,-150.0,0.00035291,2]
[327641493,1716269440525,-150.0,0.00035291,2]
[327641494,1716269440535,-1500.0,0.00035292,2]
[327641495,1716269440545,-1500.0,0.00035293,2]
[327641496,1716269440555,-150.0,0.00035295,2]
[327641497,1716269440565,-1500.0,0.00035296,2]
[327641498,1716269440575,-150.0,0.00035297,2]
[327641499,1716269440586,-10865.10307362,0.00035298,2]
[327641500,1716269440602,-8616.1,0.00035298,2]
[327641501,1716269440616,-3873.9,0.00035298,2]
[327641502,1716269440631,-11911.0,0.00035298,2]
[327641505,1716269441315,-528.18244504,0.00035298,2]
[327641506,1716269441327,-6067.87055958,0.00035298,2]
[327641507,1716269441454,-1097.74180761,0.00035298,2]
[327641508,1716269441464,-357.30629272,0.00035298,2]
[327641533,1716269443556,-152286.18292143,0.00035298,2]
[327641534,1716269443566,-1000.0,0.00035298,2]
[327641535,1716269443576,-1000.0,0.00035298,2]
[327641536,1716269443586,-1000.0,0.00035298,2]
[327641537,1716269443596,-1000.0,0.00035298,2]
[327641538,1716269443606,-1000.0,0.00035298,2]
[327641539,1716269443615,-1000.0,0.00035298,2]
[327641540,1716269443624,-1000.0,0.00035298,2]
[327641541,1716269443633,-1000.0,0.00035298,2]
[327641542,1716269443643,-1000.0,0.00035298,2]
[327641543,1716269443657,-1000.0,0.00035298,2]
[327641544,1716269443667,-1000.0,0.00035298,2]
[327641545,1716269443676,-1000.0,0.00035298,2]
[327641546,1716269443686,-1000.0,0.00035298,2]
[327641547,1716269443697,-1000.0,0.00035298,2]
[327641548,1716269443707,-1000.0,0.00035298,2]
[327641549,1716269443718,-1000.0,0.00035298,2]
[327641550,1716269443728,-1000.0,0.00035298,2]
[327641551,1716269443738,-1000.0,0.00035298,2]
[327641552,1716269443748,-1000.0,0.00035298,2]
[327641553,1716269443758,-1000.0,0.00035298,2]
[327641554,1716269443768,-1000.0,0.00035298,2]
[327641555,1716269443777,-1000.0,0.00035298,2]
[327641556,1716269443788,-1000.0,0.00035298,2]
[327641557,1716269443802,-1000.0,0.00035298,2]
[327641558,1716269443812,-1000.0,0.00035298,2]
[327641559,1716269443822,-1000.0,0.00035298,2]
[327641560,1716269443833,-1000.0,0.00035298,2]
[327641561,1716269443843,-1000.0,0.00035298,2]
[327641562,1716269443853,-1000.0,0.00035298,2]
[327641563,1716269443862,-1000.0,0.00035298,2]
[327641564,1716269443874,-1000.0,0.00035298,2]
[327641565,1716269443884,-1000.0,0.00035298,2]
[327641566,1716269443893,-1000.0,0.00035298,2]
[327641567,1716269443903,-1000.0,0.00035298,2]
[327641568,1716269443913,-1000.0,0.00035298,2]
[327641569,1716269443922,-1000.0,0.00035298,2]
[327641570,1716269443932,-1000.0,0.00035298,2]
[327641571,1716269443943,-1000.0,0.00035298,2]
[327641572,1716269443953,-1000.0,0.00035298,2]
[327641573,1716269443962,-1000.0,0.00035298,2]
[327641574,1716269443972,-1000.0,0.00035298,2]
[327641575,1716269443982,-1000.0,0.00035298,2]
[327641576,1716269443992,-1000.0,0.00035298,2]
[327641577,1716269444001,-1000.0,0.00035299,2]
[327641578,1716269444011,-1000.0,0.00035299,2]
[327641580,1716269444022,-1000.0,0.00035299,2]
[327641582,1716269444032,-1000.0,0.00035299,2]
[327641584,1716269444042,-1000.0,0.00035299,2]
[327641586,1716269444051,-1000.0,0.00035299,2]
[327641588,1716269444061,-1000.0,0.00035299,2]
[327641590,1716269444071,-1000.0,0.00035299,2]
[327641592,1716269444080,-1000.0,0.00035299,2]
[327641594,1716269444089,-1000.0,0.00035299,2]
[327641596,1716269444099,-1000.0,0.00035299,2]
[327641598,1716269444108,-1000.0,0.00035299,2]
[327641600,1716269444117,-1000.0,0.00035299,2]
[327641602,1716269444127,-1000.0,0.00035299,2]
[327641604,1716269444137,-1000.0,0.00035299,2]
[327641606,1716269444147,-1000.0,0.00035299,2]
[327641608,1716269444156,-1000.0,0.00035299,2]
[327641610,1716269444166,-1000.0,0.00035299,2]
[327641612,1716269444175,-1000.0,0.00035299,2]
[327641614,1716269444185,-1000.0,0.00035299,2]
[327641616,1716269444194,-1000.0,0.00035299,2]
[327641618,1716269444204,-1000.0,0.00035299,2]
[327641620,1716269444213,-1000.0,0.00035299,2]
[327641622,1716269444223,-1000.0,0.00035299,2]
[327641624,1716269444232,-1000.0,0.00035299,2]
[327641626,1716269444241,-1000.0,0.00035299,2]
[327641628,1716269444250,-1000.0,0.00035299,2]
[327641630,1716269444259,-1000.0,0.00035299,2]
[327641632,1716269444269,-1000.0,0.00035299,2]
[327641634,1716269444278,-1000.0,0.00035299,2]
[327641636,1716269444288,-1000.0,0.00035299,2]
[327641639,1716269444299,-150.0,0.000353,2]
[327641640,1716269444309,-150.0,0.00035302,2]
[327641641,1716269444319,-150.0,0.00035304,2]
[327641642,1716269444330,-150.0,0.00035305,2]